lending/lending_fUSD_20240816
["ID","MTS","AMOUNT","RATE_DAILY","PERIOD"]
[335027016,1723766453400,604.0,0.00025,60]
[335027024,1723766822378,622.02,8.219e-05,2]
[335027241,1723766970767,150.0,0.00024904,120]
[335027242,1723767031797,360.0,9.932e-05,2]
[335027247,1723767032582,-280.23237223,9.988e-05,2]
[335027248,1723767032591,-95.4674154,0.0001,2]
[335027260,1723767038328,-454.5325846,0.0001,2]
[335027262,1723767038337,-250.0,0.00010011,2]
[335027264,1723767038347,-882.21,0.000101,2]
[335027266,1723767038356,-1357.59981842,0.00010112,2]
[335027268,1723767038367,-9101.3781579,0.00010112,2]
[335027270,1723767038378,-8693.51986952,0.00010112,2]
[335027272,1723767038389,-1381.24087936,0.00010112,2]
[335027274,1723767038400,-770.18156741,0.00010112,2]
[335027276,1723767038411,-3166.04903559,0.00010112,2]
[335027281,1723767038443,-119.07929734,0.00010112,2]
[335027283,1723767038452,-315.18,0.00010112,2]
[335027285,1723767038462,-450.02081145,0.00010114,2]
[335027286,1723767038473,-1662.30918855,0.00010114,2]
[335027287,1723767038482,-106.12748145,0.0001016,2]
[335027288,1723767038579,-84.31251855,0.0001016,2]
[335027289,1723767038589,-640.0,0.00010296,2]
[335027290,1723767038600,-622.02,0.00010482,2]
[335027291,1723767038610,-150.99,0.00010482,2]
[335027292,1723767038622,-499.99,0.00010482,2]
[335027293,1723767038631,-343.24,0.00010482,2]
[335027294,1723767038642,-806.24128145,0.00010541,2]
[335027295,1723767038655,-13.25871855,0.00010541,2]
[335027296,1723767038666,-1670.14,0.00010541,2]
[335027297,1723767038675,-364.02,0.00010541,2]
[335027298,1723767038684,-3033.1703475,0.00010566,2]
[335027299,1723767038693,-300.0,0.00010576,2]
[335027300,1723767038702,-165.44,0.00010577,2]
[335027301,1723767038711,-531.12,0.00010678,2]
[335027302,1723767038721,-150.0,0.00010678,2]
[335027303,1723767038730,-712.98,0.00010678,2]
[335027304,1723767038739,-531.12,0.00010678,2]
[335027305,1723767038748,-5843.0,0.00010722,2]
[335027306,1723767038758,-5135.0,0.00010722,2]
[335027307,1723767038767,-4150.174,0.00010722,2]
[335027308,1723767038779,-1673.0,0.00010722,2]
[335027309,1723767038788,-1205.0,0.00010722,2]
[335027310,1723767038798,-1561.64656894,0.000108,2]
[335027311,1723767038807,-277.971168,0.00010888,2]
[335027313,1723767038816,-166.93743819,0.00010888,2]
[335027315,1723767038827,-155.0,0.00010888,2]
[335027317,1723767038837,-155.0,0.00010888,2]
[335027318,1723767038846,-150.0,0.00010899,2]
[335027320,1723767038857,-5334.90669893,0.000109,2]
[335027323,1723767038876,-63175.00867555,0.000109,2]
[335027325,1723767038887,-3048.91164779,0.000109,2]
[335027342,1723767040317,-840.96512736,0.000109,2]
[335027343,1723767040330,-27600.20785037,0.000109,2]
[335027344,1723767040340,-461.3985,0.000109,2]
[335027345,1723767040350,-420.51551932,0.000109,2]
[335027346,1723767040359,-204.88293816,0.00010959,2]
[335027347,1723767040371,-45.11706184,0.00010959,2]
[335027348,1723767040379,-497.77786623,0.0001099,2]
[335027349,1723767042167,-605.06484465,0.00010722,2]
[335027354,1723767043635,-470.93515535,0.00010722,2]
[335027355,1723767043646,-4055.82177565,0.0001099,2]
[335027357,1723767043659,-841.5247125,0.0001099,2]
[335027358,1723767043671,-922.5063449,0.0001099,2]
[335027363,1723767043895,-8632.87567252,0.0001099,2]
[335027364,1723767043908,-2412.0,0.0001099,2]
[335027365,1723767043920,-5910.85514908,0.0001099,2]
[335027366,1723767043930,-152.28213671,0.00010999,2]
[335027367,1723767043942,-361.6920653,0.00010999,2]
[335027368,1723767043953,-960.96662033,0.00010999,2]
[335027369,1723767043964,-68.05917766,0.00010999,2]
[335027370,1723767043974,-1924.0,0.00010999,2]
[335027371,1723767043983,-622.0,0.00010999,2]
[335027372,1723767043993,-1257.0,0.00010999,2]
[335027373,1723767044004,-446.0,0.00010999,2]
[335027374,1723767044013,-811.0,0.00010999,2]
[335027375,1723767044023,-1137.0,0.00010999,2]
[335027376,1723767044032,-135.8362353,0.00010999,2]
[335027377,1723767044043,-420.1637647,0.00010999,2]
[335027378,1723767044052,-551.0,0.00010999,2]
[335027379,1723767044061,-177.90852102,0.00010999,2]
[335027380,1723767044072,-69.09147898,0.00010999,2]
[335027381,1723767044082,-1490.3602081,0.00010999,2]
[335027382,1723767044092,-273.88727203,0.00010999,2]
[335027383,1723767045472,-1527.75251987,0.00010999,2]
[335027384,1723767045483,-204.52248013,0.00011,2]
[335027385,1723767045494,-327.47751987,0.00011,2]
[335027386,1723767045504,-2338.25576014,0.00011,2]
[335027387,1723767045515,-367.69336575,0.00011,2]
[335027388,1723767045526,-3067.36856786,0.00011,2]
[335027389,1723767045537,-752.79796392,0.00011,2]
[335027390,1723767045548,-11351.42744674,0.00011,2]
[335027391,1723767045558,-382.12258582,0.00011,2]
[335027392,1723767045570,-503.19150413,0.00011,2]
[335027393,1723767045580,-814.55264413,0.00011,2]
[335027395,1723767046272,-982.3784736,0.00011,2]
[335027396,1723767046285,-665.03216072,0.00011,2]
[335027397,1723767046296,-11282.35319939,0.00011,2]
[335027398,1723767046307,-2886.749998,0.00011,2]
[335027399,1723767046318,-19359.19859661,0.00011,2]
[335027400,1723767046326,-16421.50071956,0.00011,2]
[335027401,1723767046337,-361.43277495,0.00011,2]
[335027402,1723767046347,-718.1047832,0.00011,2]
[335027403,1723767046363,-1494.82037085,0.00011,2]
[335027404,1723767046373,-277.38,0.00011,2]
[335027405,1723767046384,-1222.58142477,0.00011,2]
[335027406,1723767046395,-631.37538617,0.00011,2]
[335027407,1723767046409,-3407.63288819,0.00011,2]
[335027408,1723767046421,-356.88365472,0.00011,2]
[335027409,1723767046432,-416.5696332,0.00011,2]
[335027410,1723767046442,-2654.94895016,0.00011,2]
[335027411,1723767046453,-21827.46558801,0.00011,2]
[335027412,1723767046464,-300.16333141,0.00011,2]
[335027413,1723767046474,-1793.87083348,0.00011,2]
[335027414,1723767046485,-7806.3,0.00011,2]
[335027415,1723767046502,-2127.62018939,0.00011,2]
[335027416,1723767046513,-1661.36023817,0.00011,2]
[335027417,1723767046524,-900.09,0.00011,2]
[335027418,1723767046534,-1346.35809449,0.00011,2]
[335027419,1723767046544,-8027.63642451,0.00011,2]
[335027420,1723767046555,-1250.89981912,0.00011,2]
[335027421,1723767046565,-5966.55757461,0.00011,2]
[335027422,1723767046581,-420.82,0.00011,2]
[335027423,1723767046591,-898.99522388,0.00011,2]
[335027424,1723767046602,-1079.36668129,0.00011,2]
[335027425,1723767046612,-53638.04134175,0.00011,2]
[335027426,1723767046623,-283.51720375,0.00011,2]
[335027427,1723767046633,-536.66783927,0.00011,2]
[335027428,1723767046644,-309.34434974,0.00011,2]
[335027431,1723767391310,598.26,8.219e-05,2]
[335027432,1723767400647,250.0,9.828e-05,2]
[335027433,1723767557291,524.93,9.822e-05,2]
[335027434,1723767564630,314.33147674,0.00025,60]
[335027435,1723767593815,712.0,9.822e-05,2]
[335027436,1723767879603,250.0,9.816e-05,2]
[335027437,1723767922329,586.38,8.219e-05,2]
[335027452,1723768050502,430.4,9.823e-05,2]
[335027461,1723768142527,170.39,9.823e-05,2]
[335027472,1723768170780,150.0,0.00023896,120]
[335027473,1723768205211,262.46,9.824e-05,2]
[335027481,1723768231375,-637.956817,0.00010315,2]
[335027482,1723768231386,-158.99351333,0.00010367,2]
[335027483,1723768231396,-178.27,0.00010369,2]
[335027484,1723768231406,-586.38,0.00010466,2]
[335027485,1723768231415,-1104.69834633,0.00010622,2]
[335027486,1723768231429,-1771.30205367,0.00010622,2]
[335027487,1723768231439,-2040.385839,0.00010713,2]
[335027488,1723768231449,-150.0,0.00010719,2]
[335027489,1723768231462,-150.0,0.00010722,2]
[335027490,1723768231472,-150.0,0.00010722,2]
[335027491,1723768231482,-150.0,0.00010726,2]
[335027492,1723768231491,-300.0,0.00010729,2]
[335027493,1723768231501,-193.4,0.00010729,2]
[335027494,1723768231511,-299.99,0.00010729,2]
[335027495,1723768231521,-150.0,0.00010733,2]
[335027496,1723768231531,-1281.03948577,0.00010733,2]
[335027497,1723768231543,-3244.55441955,0.00010733,2]
[335027498,1723768231555,-505.38615579,0.00010733,2]
[335027499,1723768231567,-4313.34493257,0.00010733,2]
[335027500,1723768231579,-44.83500632,0.00010733,2]
[335027501,1723768231589,-499.99,0.00010733,2]
[335027502,1723768231598,-96.60841847,0.00010736,2]
[335027503,1723768231615,-53.39158153,0.00010736,2]
[335027504,1723768231623,-218.36617649,0.00010736,2]
[335027513,1723768237920,-284.16954793,0.00010699,2]
[335027514,1723768237934,-557.87174216,0.00010699,2]
[335027515,1723768237943,-522.81382351,0.00010736,2]
[335027516,1723768237952,-150.0,0.00010743,2]
[335027518,1723768237963,-620.76,0.00010744,2]
[335027520,1723768237973,-990.06472713,0.00010745,2]
[335027602,1723768238790,-678.35527287,0.00010745,2]
[335027604,1723768238799,-1500.0,0.00010747,2]
[335027606,1723768238809,-150.0,0.00010747,2]
[335027608,1723768238818,-5819.34,0.00010748,2]
[335027610,1723768238827,-150.0,0.00010749,2]
[335027612,1723768238836,-150.0,0.00010752,2]
[335027614,1723768238845,-150.0,0.00010752,2]
[335027616,1723768238854,-150.0,0.00010755,2]
[335027618,1723768238863,-150.0,0.00010761,2]
[335027620,1723768238871,-150.0,0.00010762,2]
[335027622,1723768238881,-1251.60032535,0.00010766,2]
[335027625,1723768238901,-248.39967465,0.00010766,2]
[335027627,1723768238910,-150.0,0.00010773,2]
[335027629,1723768238919,-150.0,0.00010775,2]
[335027631,1723768238929,-150.0,0.00010777,2]
[335027633,1723768238938,-150.0,0.00010779,2]
[335027635,1723768238947,-150.0,0.00010781,2]
[335027636,1723768238956,-300.0,0.00010785,2]
[335027638,1723768238966,-150.0,0.00010798,2]
[335027640,1723768238979,-150.0,0.00010798,2]
[335027642,1723768238990,-158.99351332,0.00010799,2]
[335027644,1723768238999,-150.0,0.00010799,2]
[335027646,1723768239008,-523.02806141,0.00010799,2]
[335027648,1723768239017,-155.0,0.00010799,2]
[335027650,1723768239026,-150.0,0.00010801,2]
[335027652,1723768239035,-150.0,0.00010807,2]
[335027654,1723768239044,-8.85772322,0.00010807,2]
[335027656,1723768239056,-141.14227678,0.00010807,2]
[335027658,1723768239065,-146.54997433,0.00010818,2]
[335027661,1723768239085,-3.45002567,0.00010818,2]
[335027662,1723768239094,-150.0,0.00010825,2]
[335027664,1723768239103,-150.0,0.00010829,2]
[335027665,1723768239112,-90.69573018,0.00010829,2]
[335027666,1723768239131,-59.30426982,0.00010829,2]
[335027667,1723768239140,-150.0,0.0001083,2]
[335027668,1723768239148,-150.0,0.00010831,2]
[335027669,1723768239158,-150.0,0.00010833,2]
[335027670,1723768239168,-150.0,0.00010834,2]
[335027671,1723768239179,-150.0,0.00010836,2]
[335027672,1723768239189,-150.0,0.00010837,2]
[335027673,1723768239198,-150.0,0.00010841,2]
[335027674,1723768239207,-150.0,0.00010841,2]
[335027675,1723768239219,-150.0,0.00010842,2]
[335027676,1723768239228,-150.0,0.00010845,2]
[335027677,1723768239237,-150.0,0.00010846,2]
[335027678,1723768239248,-150.0,0.00010847,2]
[335027679,1723768239257,-59.90951855,0.00010849,2]
[335027685,1723768239596,-90.09048145,0.00010849,2]
[335027686,1723768239607,-150.0,0.0001085,2]
[335027687,1723768239617,-885.8,0.00010852,2]
[335027688,1723768239626,-150.0,0.00010854,2]
[335027689,1723768239635,-150.0,0.00010854,2]
[335027690,1723768239644,-150.0,0.00010855,2]
[335027691,1723768239653,-150.0,0.00010855,2]
[335027692,1723768239662,-300.0,0.00010856,2]
[335027693,1723768239671,-103.16308007,0.00010858,2]
[335027694,1723768239691,-46.83691993,0.00010858,2]
[335027695,1723768239700,-150.0,0.00010862,2]
[335027696,1723768239709,-150.0,0.00010863,2]
[335027697,1723768239722,-150.0,0.00010864,2]
[335027698,1723768239735,-150.0,0.00010867,2]
[335027699,1723768239744,-150.0,0.00010868,2]
[335027700,1723768239753,-150.0,0.00010872,2]
[335027701,1723768239762,-150.0,0.00010875,2]
[335027702,1723768239771,-150.0,0.00010877,2]
[335027703,1723768239780,-4408.80235215,0.00010882,2]
[335027704,1723768239882,-527.26660419,0.00010882,2]
[335027705,1723768239894,-198.93104366,0.00010882,2]
[335027706,1723768239904,-96.73662034,0.00010882,2]
[335027707,1723768239938,-1454.37337966,0.00010882,2]
[335027708,1723768239948,-150.0,0.00010883,2]
[335027709,1723768239957,-150.0,0.00010888,2]
[335027710,1723768239967,-150.0,0.00010888,2]
[335027711,1723768239977,-150.0,0.00010889,2]
[335027712,1723768239986,-300.0,0.00010892,2]
[335027713,1723768239995,-150.0,0.00010896,2]
[335027714,1723768240004,-150.0,0.00010897,2]
[335027715,1723768240014,-150.0,0.00010897,2]
[335027716,1723768240023,-26140.19391005,0.00010899,2]
[335027751,1723768245488,-371.88291753,0.00010745,2]
[335027752,1723768245499,-1324.8,0.00010745,2]
[335027753,1723768245535,-73.44986713,0.00010745,2]
[335027754,1723768245545,-345.39966854,0.00010899,2]
[335027755,1723768245555,-453.46218221,0.00010899,2]
[335027756,1723768245566,-81003.8101392,0.00010899,2]
[335027757,1723768245576,-39151.8471,0.00010899,2]
[335027758,1723768245585,-100000.0,0.00010899,2]
[335027759,1723768245596,-500.0,0.000109,2]
[335027760,1723768245605,-237.2175719,0.000109,2]
[335027761,1723768245614,-160.59516296,0.000109,2]
[335027762,1723768245623,-221.73386158,0.000109,2]
[335027763,1723768245632,-150.0,0.00010903,2]
[335027764,1723768245641,-1500.0,0.00010904,2]
[335027765,1723768245650,-150.0,0.0001091,2]
[335027766,1723768245659,-150.0,0.00010912,2]
[335027767,1723768245669,-150.0,0.00010914,2]
[335027768,1723768245678,-150.0,0.00010917,2]
[335027769,1723768245687,-150.0,0.00010919,2]
[335027770,1723768245697,-150.0,0.00010921,2]
[335027771,1723768245707,-150.0,0.00010923,2]
[335027772,1723768245716,-150.0,0.00010928,2]
[335027773,1723768245733,-150.0,0.00010929,2]
[335027774,1723768245742,-150.0,0.0001093,2]
[335027775,1723768245751,-150.0,0.0001093,2]
[335027776,1723768245761,-150.0,0.00010931,2]
[335027777,1723768245770,-150.0,0.00010933,2]
[335027778,1723768245779,-150.0,0.00010934,2]
[335027779,1723768245788,-150.0,0.00010937,2]
[335027780,1723768245798,-150.0,0.00010939,2]
[335027781,1723768245807,-150.0,0.00010947,2]
[335027782,1723768245816,-150.0,0.00010948,2]
[335027783,1723768245825,-150.0,0.0001095,2]
[335027784,1723768245834,-150.0,0.00010958,2]
[335027785,1723768245844,-250.0,0.00010959,2]
[335027786,1723768245853,-150.0,0.00010959,2]
[335027787,1723768245862,-150.0,0.0001097,2]
[335027788,1723768245873,-200.0,0.00010973,2]
[335027789,1723768245883,-200.0,0.00010973,2]
[335027791,1723768245893,-150.0,0.00010977,2]
[335027793,1723768245903,-300.0,0.00010978,2]
[335027795,1723768245912,-150.0,0.00010981,2]
[335027797,1723768245923,-150.0,0.00010984,2]
[335027799,1723768245932,-150.0,0.00010985,2]
[335027801,1723768245942,-150.0,0.00010986,2]
[335027802,1723768245952,-150.0,0.00010986,2]
[335027803,1723768245962,-150.0,0.00010987,2]
[335027804,1723768245973,-150.0,0.00010988,2]
[335027805,1723768245982,-150.0,0.00010989,2]
[335027806,1723768245991,-45653.80981834,0.0001099,3]
[335027807,1723768246000,-529.0,0.00010991,2]
[335027808,1723768246009,-150.0,0.00010996,2]
[335027809,1723768246018,-150.0,0.00010998,2]
[335027810,1723768246027,-365.83277569,0.00010999,2]
[335027811,1723768246036,-19700.45211262,0.00011,2]
[335027812,1723768246055,-545.64834686,0.00011,2]
[335027813,1723768246066,-443.72437153,0.00011,2]
[335027814,1723768246076,-740.40033588,0.00011,2]
[335027815,1723768246095,-14156.65065489,0.00011,2]
[335027816,1723768246104,-11616.67275662,0.00011,2]
[335027817,1723768246115,-344.849717,0.00011,2]
[335027818,1723768246127,-298.66236919,0.00011,2]
[335027819,1723768246149,-1919.57705919,0.00011,2]
[335027820,1723768246177,-611.967,0.00011,2]
[335027824,1723768468171,544.87,9e-05,2]
[335027825,1723768590807,150.0,0.0002462,120]
[335027826,1723768993307,150.5,0.0001799,120]
[335027827,1723768993778,150.5,0.0001798,120]
[335027828,1723768994252,150.5,0.0001797,120]
[335027829,1723768994706,150.5,0.0001799,120]
[335027830,1723768995299,150.5,0.0001798,120]
[335027831,1723768995808,197.49,0.0001797,120]
[335027833,1723769064359,535.25,8.278e-05,2]
[335027843,1723769319808,2526.479115,9.95e-05,2]
[335027858,1723769432093,-550.0,0.0001,2]
[335027859,1723769432104,-262.46,0.00010158,2]
[335027860,1723769432114,-1000.0,0.00010221,2]
[335027861,1723769432123,-250.0,0.00010251,2]
[335027862,1723769432132,-297.76,0.00010269,2]
[335027863,1723769432142,-252.10441227,0.00010418,2]
[335027864,1723769432224,-47.89558773,0.00010418,2]
[335027865,1723769432233,-642.92895607,0.00010419,2]
[335027866,1723769432275,-14149.67104393,0.00010419,2]
[335027867,1723769432284,-150.0,0.00010521,2]
[335027868,1723769432294,-535.25,0.00010542,2]
[335027869,1723769432303,-178.27,0.00010761,2]
[335027870,1723769432312,-499.99,0.00010761,2]
[335027871,1723769432321,-706.14623155,0.00010761,2]
[335027872,1723769432333,-1657.48376845,0.00010761,2]
[335027873,1723769432343,-150.99,0.00010761,2]
[335027874,1723769432352,-208.79,0.00010763,2]
[335027875,1723769432361,-1048.02401573,0.00010799,2]
[335027876,1723769432373,-517.67,0.00010799,2]
[335027878,1723769432384,-270.75198427,0.00010799,2]
[335027879,1723769432393,-795.72045801,0.000108,2]
[335027880,1723769432405,-1472.97,0.000108,2]
[335027881,1723769432421,-3659.75014199,0.000108,2]
[335027882,1723769432431,-259.9738,0.000108,2]
[335027883,1723769432446,-2255.90225,0.0001089,2]
[335027884,1723769432455,-150.0,0.00010899,2]
[335027885,1723769432465,-3081.07673686,0.000109,2]
[335027889,1723769437669,-13500.0,0.000109,2]
[335027890,1723769437730,-642.12023881,0.000109,2]
[335027891,1723769437786,-471.26757877,0.000109,2]
[335027892,1723769437797,-63650.15497159,0.000109,2]
[335027893,1723769437808,-1109.20886868,0.000109,2]
[335027894,1723769437898,-33466.52773018,0.000109,2]
[335027895,1723769437955,-287.34726879,0.000109,2]
[335027899,1723769439610,-35902.69645705,0.000109,2]
[335027900,1723769439622,-1641.30252,0.000109,2]
[335027901,1723769439633,-29574.57782437,0.000109,2]
[335027902,1723769439775,-3017.256,0.000109,2]
[335027903,1723769439786,-2880.424834,0.000109,2]
[335027904,1723769439796,-2942.05,0.000109,2]
[335027905,1723769439890,-362.572002,0.000109,2]
[335027906,1723769439902,-1222.55721264,0.000109,2]
[335027913,1723769443681,-947.40643778,0.000109,2]
[335027915,1723769443692,-13309.81674509,0.000109,2]
[335027917,1723769443705,-6324.32627339,0.000109,2]
[335027919,1723769443715,-733.4882,0.000109,2]
[335027927,1723769443924,-356.55,0.000109,2]
[335027928,1723769443935,-150.99,0.00010959,2]
[335027929,1723769443945,-250.0,0.00010959,2]
[335027930,1723769443954,-155.0,0.00010979,2]
[335027931,1723769443963,-1220.31,0.00010998,2]
[335027932,1723769443973,-2143.7738894,0.00010998,2]
[335027933,1723769443982,-25926.8233152,0.00010998,2]
[335027934,1723769443992,-5502.2418987,0.00010998,2]
[335027935,1723769444001,-17793.43791089,0.00011,2]
[335027936,1723769444010,-89461.84222726,0.00011,2]
[335027937,1723769444022,-1656.315,0.00011,2]
[335027938,1723769445368,-340.68338463,0.00011,2]
[335027944,1723769445731,-896.1847932,0.00011,2]
[335027945,1723769445743,-9309.10477623,0.00011,2]
[335027946,1723769445753,-5114.97780404,0.00011,2]
[335027947,1723769445905,-1301.33763081,0.00011,2]
[335027948,1723769446151,-416.2025,0.00011,2]
[335027950,1723769562397,515.21,8.673e-05,2]
[335027953,1723770063986,505.73,8.219e-05,2]
[335027956,1723770368400,415.01059966,9.962e-05,2]
[335027957,1723770378324,5118.06,9.884e-05,2]
[335027959,1723770408384,303.98208233,9.962e-05,2]
[335027961,1723770455459,200.0,9.821e-05,2]
[335027966,1723770560226,495.92,8.219e-05,2]
[335027967,1723770567974,-180.47,9.98e-05,2]
[335027968,1723770568002,-661.0,9.999e-05,2]
[335027969,1723770568029,-1346.1323509,9.999e-05,2]
[335027970,1723770573231,-300.0,9.999e-05,2]
[335027971,1723770574400,-300.0,9.999e-05,2]
[335027972,1723770575820,-59.85081615,9.999e-05,2]
[335027973,1723770575841,-240.14918385,0.0001,2]
[335027974,1723770577281,-300.0,0.0001,2]
[335027982,1723770631785,-9.85081615,0.0001,2]
[335027983,1723770631795,-170.39,0.00010118,2]
[335027984,1723770631804,-1000.0,0.00010285,2]
[335027985,1723770631813,-173.15774171,0.00010334,2]
[335027986,1723770631823,-208.79,0.00010434,2]
[335027987,1723770631832,-495.92,0.00010473,2]
[335027988,1723770631842,-300.0,0.00010499,2]
[335027989,1723770631851,-112.13441711,0.000105,2]
[335027990,1723770631863,-308.99558289,0.000105,2]
[335027991,1723770631873,-104.47764619,0.000105,2]
[335027992,1723770632000,-316.65235381,0.000105,2]
[335027993,1723770632010,-421.13,0.000105,2]
[335027994,1723770632019,-636.13,0.000105,2]
[335027995,1723770632029,-420.08,0.000105,2]
[335027996,1723770632038,-266.33,0.000105,2]
[335027997,1723770632047,-608.59,0.000105,2]
[335027998,1723770632057,-1061.64,0.000105,2]
[335027999,1723770632066,-150.0,0.000105,2]
[335028000,1723770632076,-206.98136724,0.000105,2]
[335028001,1723770632087,-149.56863276,0.000105,2]
[335028002,1723770632097,-339.13393091,0.00010541,2]
[335028003,1723770632108,-496.44606909,0.00010541,2]
[335028004,1723770632118,-835.58,0.00010541,2]
[335028005,1723770632127,-835.58,0.00010541,2]
[335028006,1723770632137,-150.0,0.00010577,2]
[335028007,1723770632147,-501.1629421,0.00010577,2]
[335028008,1723770632159,-300.3270579,0.00010577,2]
[335028009,1723770632168,-315.4434621,0.00010578,2]
[335028010,1723770632180,-496.77,0.00010578,2]
[335028011,1723770632192,-40.6065379,0.00010578,2]
[335028012,1723770632202,-150.0,0.00010578,2]
[335028013,1723770632211,-323.13,0.00010578,2]
[335028014,1723770632220,-531.12,0.00010578,2]
[335028015,1723770632230,-150.0,0.00010578,2]
[335028016,1723770632239,-150.0,0.00010578,2]
[335028017,1723770632248,-150.0,0.00010578,2]
[335028018,1723770632257,-268.08640803,0.00010578,2]
[335028019,1723770632269,-263.03359197,0.00010578,2]
[335028020,1723770632278,-150.0,0.00010578,2]
[335028021,1723770632288,-150.0,0.00010578,2]
[335028022,1723770632297,-150.0,0.00010578,2]
[335028023,1723770632307,-531.12,0.00010578,2]
[335028024,1723770632316,-150.0,0.00010578,2]
[335028025,1723770632325,-150.0,0.00010578,2]
[335028026,1723770632334,-150.0,0.00010578,2]
[335028027,1723770632343,-531.12,0.00010578,2]
[335028028,1723770632353,-531.12,0.00010578,2]
[335028029,1723770632363,-708.09,0.00010578,2]
[335028030,1723770632372,-356.61,0.00010678,2]
[335028031,1723770632381,-356.61,0.00010678,2]
[335028032,1723770632391,-356.61,0.00010678,2]
[335028033,1723770632400,-356.61,0.00010678,2]
[335028034,1723770632409,-356.61,0.00010678,2]
[335028035,1723770632419,-1143.5919,0.000107,2]
[335028036,1723770632428,-531.12,0.000107,2]
[335028037,1723770632438,-551.0,0.00010722,2]
[335028038,1723770632447,-880.79,0.00010722,2]
[335028039,1723770632456,-247.0,0.00010722,2]
[335028040,1723770632466,-169.27608543,0.00010757,2]
[335028041,1723770632478,-128.51391457,0.00010757,2]
[335028042,1723770632487,-392.92939761,0.000108,2]
[335028043,1723770632498,-107.07060239,0.000108,2]
[335028044,1723770632508,-4982.08526547,0.000108,2]
[335028045,1723770632519,-307.5,0.000108,2]
[335028046,1723770632538,-777.495996,0.000108,2]
[335028047,1723770632549,-287.37338502,0.000108,2]
[335028048,1723770632560,-493.23926946,0.000108,2]
[335028049,1723770632571,-4082.1901667,0.000108,2]
[335028050,1723770632583,-1528.35103245,0.000108,2]
[335028053,1723770638098,-7310.16588606,0.000108,2]
[335028054,1723770638110,-763.44468527,0.000108,2]
[335028055,1723770638121,-307.07755376,0.000108,2]
[335028056,1723770638132,-1042.05663798,0.000108,2]
[335028057,1723770638143,-770.31124264,0.000108,2]
[335028058,1723770638154,-442.25,0.000108,2]
[335028059,1723770638167,-515.28705452,0.000108,2]
[335028060,1723770638178,-1134.70787623,0.000108,2]
[335028061,1723770638189,-4852.6012,0.000108,2]
[335028062,1723770638202,-10535.96684458,0.000108,2]
[335028063,1723770638213,-6271.17747809,0.000108,2]
[335028064,1723770638224,-1167.56978197,0.000108,2]
[335028065,1723770638236,-39637.36707899,0.000108,2]
[335028066,1723770638248,-4830.05462,0.000108,2]
[335028067,1723770638259,-19137.89899619,0.000108,2]
[335028068,1723770638298,-1248.82727493,0.000108,2]
[335028069,1723770638309,-35849.47465954,0.000108,2]
[335028070,1723770638334,-3861.57904239,0.000108,2]
[335028071,1723770638345,-6438.92326718,0.000108,2]
[335028073,1723770638356,-5213.2416444,0.000108,2]
[335028075,1723770638368,-10057.58,0.000108,2]
[335028088,1723770639976,-307.46014093,0.000108,2]
[335028089,1723770640118,-1079.800005,0.000108,2]
[335028090,1723770640129,-680.67,0.000108,2]
[335028091,1723770640141,-5520.4318433,0.000108,2]
[335028092,1723770640152,-267.58574982,0.000108,2]
[335028093,1723770640164,-347.78074878,0.000108,2]
[335028094,1723770640176,-3422.01257235,0.000108,2]
[335028095,1723770640185,-171.07479856,0.000108,2]
[335028096,1723770640220,-382.87230144,0.000108,2]
[335028097,1723770640230,-5561.5086,0.000108,2]